Cogmind - Beta 11 X9 @@@ ROGUE MODE // 2022.01.23 @ 00:40:04 Player: LU-1G1 Result: Self-destructed Performance ------------- Evolutions (6) 3000 Regions Visited (21) 4200 Robots Destroyed (110) 550 Value Destroyed (3877) 3877 Prototype IDs (54) 1080 Alien Tech Used (1) 200 Bonus (986) 986 TOTAL SCORE: 13893 Bonus ------- Follower Combat Kills 86 Aligned with FarCom 300 Met Data Miner 300 Met Zhirov 300 Cogmind --------- Core Integrity 931/1150 Matter 22/300 Energy 570/570 System Corruption 2% Temperature Warm (157) Movement Core (900) Ox17 Location -4/Factory Parts ------- > --- POWER (2) -------- F-cell Engine Light Antimatter Reactor > --- PROPULSION (6) --- (None) > --- UTILITY (9) ------ Improved Coolant Injector Medium Storage Unit Visual Processing Unit Advanced Signal Interpreter Improved Utility Shielding Hacking Suite Makeshift Hacking Suite System Shield Advanced System Shield > --- WEAPON (2) ------- Advanced Variable Charge Gun Hypervelocity Mass Driver > --- INVENTORY (10) --- Compact Wheel Makeshift Transmission Jammer Advanced Dynamic Insulation System High-powered Tractor Beam Transdimensional Reconstructor Advanced Variable Charge Gun Molecular Deconstructor CR-A16's Pointy Stick Peak State ------------ > --- POWER ------------ F-cell Engine Light Antimatter Reactor > --- PROPULSION ------- Improved Heavy Treads Improved Heavy Treads Improved Heavy Treads > --- UTILITY ---------- Improved Coolant Injector Medium Storage Unit Visual Processing Unit Advanced Signal Interpreter Improved Utility Shielding Hacking Suite Makeshift Hacking Suite System Shield Advanced System Shield > --- WEAPON ----------- Hypervelocity Mass Driver Hypervelocity Mass Driver > --- INVENTORY -------- Compact Wheel Makeshift Transmission Jammer Advanced Dynamic Insulation System High-powered Tractor Beam Transdimensional Reconstructor Advanced Variable Charge Gun Advanced Variable Charge Gun Molecular Deconstructor CR-A16's Pointy Stick [Rating: 108] Favorites ----------- Power Micro Nuclear Core Engine Ion Engine Power Core Micro Nuclear Core Reactor Light Antimatter Reactor Propulsion Light Treads Treads Light Treads Leg Improved Carbon-fiber Leg Hover Unit Improved Antigrav System Flight Unit Nuclear Pulse Thruster Utility Advanced Targeting Computer Device Improved Heat Sink Storage High-capacity Storage Unit Processor Advanced Targeting Computer Hackware Makeshift Hacking Suite Protection Improved Utility Shielding Weapon Enhanced Autogun Energy Gun Medium Laser Energy Cannon Neutron Cannon Ballistic Gun Enhanced Autogun Ballistic Cannon Hypervelocity Mass Driver Launcher Rocket Launcher Impact Weapon Heavy Hammer Piercing Weapon CR-A16's Pointy Stick Build | -11 -10 -10 -10 -9 -8 -7 -7 -7 -7 -6 -6 -6 -6 -6 -5 -5 -5 -5 -5 -4 -4 ------- Run | Scr Mat Min Exi Min Mat Fac Low Low Zio Pro Fac Low Low Dat Pro Fac Upp Upp Zhi Pro Fac Slots Evolved 12 | . . . . . 4 2 . . . . 2 . . . . 2 . . . . 2 Power 1 | . . . . . . . . . . . . . . . . 1 . . . . . Propulsion 4 | . . . . . 1 1 . . . . 1 . . . . 1 . . . . . Utility 7 | . . . . . 3 1 . . . . 1 . . . . . . . . . 2 Weapon . | . . . . . . . . . . . . . . . . . . . . . . Parts Attached 116 | 6 2 2 1 4 22 8 2 7 2 1 3 2 2 . 13 10 3 . 2 7 17 Power 9 | 1 . . . 1 . . . 1 . . . . . . 1 1 . . . 1 3 Engine 5 | 1 . . . 1 . . . . . . . . . . . 1 . . . . 2 Core 3 | . . . . . . . . 1 . . . . . . 1 . . . . 1 . Reactor 1 | . . . . . . . . . . . . . . . . . . . . . 1 Propulsion 35 | 2 . . . 1 9 3 . 4 . . 1 1 1 . 1 3 1 . . 4 4 Treads 20 | 2 . . . 1 6 3 . 2 . . 1 1 1 . . . . . . . 3 Leg 8 | . . . . . 3 . . 2 . . . . . . 1 . . . . 2 . Wheel . | . . . . . . . . . . . . . . . . . . . . . . Hover 2 | . . . . . . . . . . . . . . . . . . . . 1 1 Flight 5 | . . . . . . . . . . . . . . . . 3 1 . . 1 . Utility 41 | 1 2 . 1 1 5 3 1 1 2 1 1 . . . 5 5 2 . 2 1 7 Device 14 | . . . . 1 2 1 . . . 1 1 . . . 3 1 1 . . 1 2 Storage 7 | 1 1 . 1 . . . 1 . . . . . . . 1 . . . 1 . 1 Processor 3 | . . . . . 1 . . . . . . . . . . 2 . . . . . Hackware 5 | . . . . . . . . . 1 . . . . . . 1 . . . . 3 Protection 12 | . 1 . . . 2 2 . 1 1 . . . . . 1 1 1 . 1 . 1 Artifact . | . . . . . . . . . . . . . . . . . . . . . . Weapon 31 | 2 . 2 . 1 8 2 1 1 . . 1 1 1 . 6 1 . . . 1 3 Energy Gun 7 | 1 . . . . 5 . . . . . . . . . . . . . . . 1 Energy Cannon 1 | . . . . . . . . . . . . . . . 1 . . . . . . Ballistic Gun 14 | 1 . 1 . 1 3 1 . 1 . . . 1 1 . 3 . . . . 1 . Ballistic Cannon 2 | . . . . . . . . . . . . . . . . . . . . . 2 Launcher 5 | . . 1 . . . 1 1 . . . . . . . 2 . . . . . . Special Weapon . | . . . . . . . . . . . . . . . . . . . . . . Impact Weapon 1 | . . . . . . . . . . . 1 . . . . . . . . . . Slashing Weapon . | . . . . . . . . . . . . . . . . . . . . . . Piercing Weapon 1 | . . . . . . . . . . . . . . . . 1 . . . . . Special Melee Weapon . | . . . . . . . . . . . . . . . . . . . . . . Unidentified Prototypes 12 | . . . . . 4 . . . . . . . . . 1 1 . . 3 . 3 Parts Lost 45 | . . . . 4 3 1 2 1 1 1 . 1 4 . 14 . 2 . . 7 4 Power 5 | . . . . 1 . . 1 . . . . . . . 1 . . . . 2 . Propulsion 17 | . . . . 1 . 1 1 . . . . 1 3 . 2 . 2 . . 3 3 Utility 11 | . . . . 1 . . . 1 1 1 . . . . 6 . . . . 1 . Weapon 12 | . . . . 1 3 . . . . . . . 1 . 5 . . . . 1 1 Highest Loss Streak 10 | . . . . 4 1 1 1 1 1 1 . 1 2 . 10 . 2 . . 5 3 Average Slot Usage (%) 84 | . 94 100 100 90 89 88 91 94 96 99 100 98 82 80 40 61 70 58 61 55 79 Engine 4 | . 14 14 14 10 9 7 4 . . . . . . . . 2 5 5 5 . 2 Core 2 | . . . . . . . . 7 7 7 6 6 6 6 . 2 . . . . . Treads 19 | . 28 28 28 27 11 23 24 29 30 30 33 31 15 13 . . . . . . 13 Leg 1 | . . . . . 14 . . . . . . . . . 3 2 . . . 3 . Device 8 | . . . . 2 17 7 7 7 7 12 20 20 20 20 5 4 4 5 5 7 5 Storage 7 | . 14 14 14 14 9 7 7 7 7 7 6 6 6 6 6 7 2 . . . 4 Processor 6 | . . . . . 4 7 7 7 7 7 6 6 6 6 6 9 17 17 17 17 10 Hackware 1 | . . . . . . . . . . . . . . . . 2 5 5 5 5 20 Protection 12 | . 9 14 14 7 7 19 23 17 19 16 13 13 13 13 4 5 6 5 8 8 4 Energy Gun 1 | . 14 3 . . 7 1 . . . . . . . . . . . . . . . Ballistic Gun 11 | . 14 21 28 27 8 11 8 10 15 15 9 9 12 13 7 2 . . . 3 . Naked Turns . | . . . . . . . . . . . . . . . . . . . . . . Heaviest Build 76 | 13 19 20 29 31 45 45 66 71 71 67 65 65 65 65 76 76 18 10 11 12 61 Greatest Support 225 | 40 40 40 40 40 62 82 82 88 88 88 108 108 88 40 28 28 21 11 11 40 225 Greatest Overweight (x) 18 | . . . . 1 1 1 1 . . . . . 1 1 18 12 1 . . 3 1 Average Overweight (x) . | . . . . . . . . . . . . . . 1 3 . . . . . . Largest Inventory Capacity 20 | 8 10 10 15 15 15 15 20 20 20 20 20 20 20 20 20 20 5 5 5 5 10 Average Capacity 15 | 7 9 10 13 15 15 15 17 20 20 20 20 20 20 20 20 12 5 5 5 5 9 Most Carried 20 | 6 10 10 11 10 15 15 15 20 20 20 19 19 20 20 20 17 5 5 5 5 10 Average Carried 13 | 3 8 10 10 9 13 14 15 16 20 20 18 18 18 20 17 10 5 5 5 5 8 Final Capacity 20 | 8 10 10 15 15 15 15 20 20 20 20 20 20 20 20 20 5 5 5 5 5 10 Final Carried 20 | 6 10 10 10 8 15 15 15 20 20 20 18 19 20 20 17 5 5 5 5 5 9 Class Distribution -------------------- 50% | Scavenger-Mutant 40% | Mutant 6% | Hacker-Mutant Dominant Class ---------------- Mutant | -10/Materials Mutant | -10/Mines Mutant | -10/Exiles Mutant | -9/Mines Mutant | -8/Materials Mutant | -7/Factory Scavenger-Mutant | -7/Lower Caves Scavenger-Mutant | -7/Lower Caves Scavenger-Mutant | -7/Zion Scavenger-Mutant | -6/Proximity Caves Scavenger-Mutant | -6/Factory Scavenger-Mutant | -6/Lower Caves Scavenger-Mutant | -6/Lower Caves Scavenger-Mutant | -6/Data Miner Scavenger-Mutant | -5/Proximity Caves Sprinter | -5/Factory Sprinter | -5/Upper Caves Mutant | -5/Upper Caves Mutant | -5/Zhirov Mutant | -4/Proximity Caves Hacker-Mutant | -4/Factory Resources | -11 -10 -10 -10 -9 -8 -7 -7 -7 -7 -6 -6 -6 -6 -6 -5 -5 -5 -5 -5 -4 -4 ----------- Run | Scr Mat Min Exi Min Mat Fac Low Low Zio Pro Fac Low Low Dat Pro Fac Upp Upp Zhi Pro Fac Matter Collected 2706 | 235 64 99 . 61 408 249 97 122 117 98 . 95 161 . 265 . 150 . . 88 397 Remotely . | . . . . . . . . . . . . . . . . . . . . . . Salvage Created 4552 | . 221 147 . 85 1122 265 168 85 61 178 . 115 231 . 310 . 56 . . 283 1225 Parts 235 | . 11 8 . 4 56 15 7 6 2 15 . 3 7 . 11 . 3 . . 19 68 Haulers Intercepted 7 | . 1 . . . 4 1 . . . . . . . . . . . . . . 1 Recyclers Shooed 3 | . . 1 . . . . . . . . . . . . . . . . . . 2 Parts Field Recycled . | . . . . . . . . . . . . . . . . . . . . . . Retrieved Matter . | . . . . . . . . . . . . . . . . . . . . . . Parts Self-Destructed 68 | . . . . . . . 5 7 2 14 . 6 7 . 11 . 3 . . 13 . Prevented . | . . . . . . . . . . . . . . . . . . . . . . Kills | -11 -10 -10 -10 -9 -8 -7 -7 -7 -7 -6 -6 -6 -6 -6 -5 -5 -5 -5 -5 -4 -4 ------- Run | Scr Mat Min Exi Min Mat Fac Low Low Zio Pro Fac Low Low Dat Pro Fac Upp Upp Zhi Pro Fac Combat Hostiles Destroyed 79 | . 3 4 . 2 14 5 7 5 1 5 . 3 4 . 5 . 2 . . 7 12 Melee 9 | . . . . . . . . . . . . . . . . . 2 . . 7 . Guns 44 | . 3 4 . 2 13 3 . 1 1 5 . 3 4 . 4 . . . . . 1 Cannons 11 | . . . . . . . . . . . . . . . . . . . . . 11 AOE 14 | . . . . . . 2 7 4 . . . . . . 1 . . . . . . Classes Destroyed 16 | . 4 1 . 1 3 3 . 1 1 . . . 1 . 1 . . . . . . Worker 6 | . . . . . 2 1 . . . . . . . . . . . . . . 3 Builder 4 | . . . . . 1 . . . . . . . . . . . . . . . 3 Tunneler 1 | . . 1 . . . . . . . . . . . . . . . . . . . Hauler 7 | . 1 . . . 4 1 . . . . . . . . . . . . . . 1 Recycler 4 | . . . . . . 1 . . . . . . . . . . . . . . 3 Minesweeper 1 | . . . . . . . . 1 . . . . . . . . . . . . . Operator 4 | . 1 . . . 2 . . . . . . . . . . . . . . . 1 Watcher 4 | . 1 . . . 1 . . . . . . . . . . . . . . . 2 Swarmer 25 | . . . . . . 2 3 4 . 4 . 2 . . . . 2 . . 5 3 Grunt 36 | . 3 4 . 1 13 . 4 1 . 1 . 1 3 . 3 . . . . 2 . Brawler 1 | . . . . 1 . . . . . . . . . . . . . . . . . Duelist 1 | . . . . . . . . . . . . . 1 . . . . . . . . Sentry 3 | . . . . . 1 2 . . . . . . . . . . . . . . . Hunter 8 | . . . . . . . . . 1 . . . . . 2 . . . . . 5 Programmer 5 | . . . . . . 1 . . . . . . . . . . . . . . 4 Samaritan 1 | . . . . . . . . . . . . . . . 1 . . . . . . Best Kill Streak 12 | . 2 2 . 2 6 3 4 4 1 4 . 2 3 . 2 . 2 . . 4 12 Combat Bots Only 7 | . 2 2 . 2 4 2 4 4 1 4 . 2 3 . 2 . 2 . . 4 7 Max Kills in Single Turn 3 | . 1 1 . 1 2 2 2 2 1 1 . 1 1 . 1 . 1 . . 1 3 Gunslinging 1 | . . . . . 1 . . . . . . . . . . . . . . . . Exploded 2 | . . . . . . 1 2 2 . . . . . . 1 . . . . . . Melee 1 | . . . . . . . . . . . . . . . . . 1 . . 1 . Uniques/NPCs Destroyed . | . . . . . . . . . . . . . . . . . . . . . . Combat | -11 -10 -10 -10 -9 -8 -7 -7 -7 -7 -6 -6 -6 -6 -6 -5 -5 -5 -5 -5 -4 -4 -------- Run | Scr Mat Min Exi Min Mat Fac Low Low Zio Pro Fac Low Low Dat Pro Fac Upp Upp Zhi Pro Fac Damage Taken 10110 | . 96 274 59 179 870 655 236 85 273 354 . 127 567 . 1837 44 235 . . 1395 2824 Core 2090 | . 11 22 . 24 80 71 36 . . 31 . 33 . . 662 . 49 . . 852 219 Absorbed by Shields . | . . . . . . . . . . . . . . . . . . . . . . Reduced by Siege Mode 162 | . . . . . . . . . . . . . . . . . . . . . 162 Core Remaining (%) 61 | 100 . . . 77 85 . . . . 80 . . . . 18 . . . . 9 . Volleys Fired 287 | . 21 21 4 6 61 23 7 7 20 13 . 6 26 . 31 . . . . 2 39 Largest 2 | . 2 2 2 2 2 2 1 2 2 2 . 2 2 . 2 . . . . 1 2 Hottest 146 | . 70 40 40 40 110 50 33 50 50 50 . 50 50 . 115 . . . . 23 146 Shots Fired 506 | . 40 40 8 11 101 38 7 11 40 26 . 12 44 . 48 . . . . 2 78 Gun 416 | . 40 38 8 11 101 31 . 8 40 26 . 12 44 . 43 . . . . 2 12 Cannon 68 | . . . . . . . . . . . . . . . 2 . . . . . 66 Launcher 22 | . . 2 . . . 7 7 3 . . . . . . 3 . . . . . . Special . | . . . . . . . . . . . . . . . . . . . . . . Kinetic 397 | . 21 38 8 11 47 31 . 8 40 26 . 12 44 . 43 . . . . 2 66 Thermal 33 | . 19 . . . . . . . . . . . . . 2 . . . . . 12 Explosive 22 | . . 2 . . . 7 7 3 . . . . . . 3 . . . . . . Electromagnetic 54 | . . . . . 54 . . . . . . . . . . . . . . . . Robot Hit Streak 19 | . 15 11 . 7 18 10 3 10 5 7 . 8 14 . 19 . . . . 7 7 Robot Miss Streak 5 | . 2 3 . 1 2 4 1 1 2 5 . 1 1 . 2 . . . . . 4 Penetration Max 2 | . . . . . . . . . . . . . . . . . . . . . 2 Secondary Targets 2 | . . . . 1 1 . . . . . . . . . . . . . . . . Max Gunslinging Chain 1 | . . . . 1 1 . . . . . . . . . . . . . . . . Shots Hit Robots 348 | . 25 25 . 10 77 27 5 9 10 14 . 9 35 . 40 . 4 . . 15 43 Core Hits 200 | 1 13 9 . 5 48 12 14 10 1 8 . 6 12 . 19 . 2 . . 11 29 Critical Kills 23 | . . . . . . . . . . . . . . . . . . . . . 23 Critical Parts Destroyed 13 | . . . . . . . . . . . . . . . . . . . . . 13 Critical Strikes 39 | . 2 . . . . . . . . . . . . . . . . . . 1 36 Burn 2 | . 2 . . . . . . . . . . . . . . . . . . . . Destroy 36 | . . . . . . . . . . . . . . . . . . . . . 36 Puncture 1 | . . . . . . . . . . . . . . . . . . . . 1 . Melee Attacks 39 | . . . . . . . . . . . 1 . . . . 2 9 . . 26 1 Impact 1 | . . . . . . . . . . . 1 . . . . . . . . . . Slashing . | . . . . . . . . . . . . . . . . . . . . . . Piercing 38 | . . . . . . . . . . . . . . . . 2 9 . . 26 1 Sneak Attacks 1 | . . . . . . . . . . . . . . . . . . . . . 1 Combat Hostiles . | . . . . . . . . . . . . . . . . . . . . . . Follow-up Attacks . | . . . . . . . . . . . . . . . . . . . . . . Damage Inflicted 8175 | 2 268 316 . 115 1781 927 656 446 126 243 . 155 599 . 725 . 150 . . 469 1197 Guns 4585 | . 268 294 . 107 1459 411 . 99 126 243 . 155 599 . 568 . . . . 35 221 Cannons 933 | . . . . . . . . . . . . . . . 72 . . . . . 861 Explosions 1885 | . . . . . 317 480 656 347 . . . . . . 85 . . . . . . Melee 686 | . . . . . . . . . . . . . . . . . 150 . . 434 102 Ramming 86 | 2 . 22 . 8 5 36 . . . . . . . . . . . . . . 13 Kinetic 3975 | . 92 294 . 107 385 411 . 99 126 243 . 155 599 . 568 . . . . 35 861 Thermal 786 | . 176 . . . 317 . . . . . . . . . 72 . . . . . 221 Explosive 1568 | . . . . . . 480 656 347 . . . . . . 85 . . . . . . Electromagnetic 1074 | . . . . . 1074 . . . . . . . . . . . . . . . . Impact . | . . . . . . . . . . . . . . . . . . . . . . Slashing . | . . . . . . . . . . . . . . . . . . . . . . Piercing 686 | . . . . . . . . . . . . . . . . . 150 . . 434 102 Highest Corruption 6 | . . . . 6 . . . . . . . . . . . 1 1 1 1 1 2 Average Corruption 1 | . . . . 5 . . . . . . . . . . . 1 1 1 1 1 1 Corruption Purged . | . . . . . . . . . . . . . . . . . . . . . . Effects 6 | . . . . 5 . . . . . . . . . . . . 1 . . . . Matter Fused 4 | . . . . 4 . . . . . . . . . . . . . . . . . Data Loss (minor) 1 | . . . . . . . . . . . . . . . . . 1 . . . . Data Loss (major) 1 | . . . . 1 . . . . . . . . . . . . . . . . . Overload Shots . | . . . . . . . . . . . . . . . . . . . . . . Overflow Damage 160 | . . . . . . 123 3 . . . . . . . 5 . . . . 18 11 Projectiles 11 | . . . . . . . . . . . . . . . . . . . . . 11 Explosions 131 | . . . . . . 123 3 . . . . . . . 5 . . . . . . Melee 18 | . . . . . . . . . . . . . . . . . . . . 18 . Knockbacks 8 | . . 1 . . . . . . . . . . . . . . . . . . 7 Impact 1 | . . 1 . . . . . . . . . . . . . . . . . . . Kinetic 7 | . . . . . . . . . . . . . . . . . . . . . 7 Secondary . | . . . . . . . . . . . . . . . . . . . . . . Self-Inflicted Damage 245 | . . 65 . . 85 . 27 . . . . . . . 68 . . . . . . Shots 7 | . . 2 . . 2 . 1 . . . . . . . 2 . . . . . . Rammed 10 | 1 . 4 . 1 1 1 . . . . . . . . . . . . . . 2 Targets Rammed 12 | 1 . 5 . 1 1 2 . . . . . . . . . . . . . . 2 Kicked . | . . . . . . . . . . . . . . . . . . . . . . Crushed 2 | . . 1 . . . 1 . . . . . . . . . . . . . . . Highest Temperature 197 | . 127 12 . . 182 11 2 . . 16 . . . . 12 . 3 . . 6 197 Average Temperature 61 | . 47 6 . . 50 6 2 . . 8 . . . . 8 . 3 . . 6 89 Received Heat Transfer 1946 | . 51 114 . 24 405 228 72 . . 72 . 27 135 . 513 . 66 . . 128 111 Siege Activations 2 | . . . . . . . . . . . . . . . . . . . . . 2 Total Turns 33 | . . . . . . . . . . . . . . . . . . . . . 33 Longest Duration 27 | . . . . . . . . . . . . . . . . . . . . . 27 Robots Corrupted 1 | . . . . . 1 . . . . . . . . . . . . . . . . Combat Hostiles 1 | . . . . . 1 . . . . . . . . . . . . . . . . Parts Fried 4 | . . . . . 4 . . . . . . . . . . . . . . . . Impact Corruptions . | . . . . . . . . . . . . . . . . . . . . . . Robots Melted . | . . . . . . . . . . . . . . . . . . . . . . Combat Hostiles . | . . . . . . . . . . . . . . . . . . . . . . Parts Melted 1 | . . . . 1 . . . . . . . . . . . . . . . . . Heat Transferred 1362 | . 666 . . . 350 . . . . . . . . . 50 . . . . . 296 Parts Sabotaged . | . . . . . . . . . . . . . . . . . . . . . . Parts Stolen . | . . . . . . . . . . . . . . . . . . . . . . Parts Stripped . | . . . . . . . . . . . . . . . . . . . . . . Power Chain Reactions 2 | . . . . . 2 . . . . . . . . . . . . . . . . Missiles Intercepted . | . . . . . . . . . . . . . . . . . . . . . . Alert | -11 -10 -10 -10 -9 -8 -7 -7 -7 -7 -6 -6 -6 -6 -6 -5 -5 -5 -5 -5 -4 -4 ------- Run | Scr Mat Min Exi Min Mat Fac Low Low Zio Pro Fac Low Low Dat Pro Fac Upp Upp Zhi Pro Fac Peak Influence 351 | . 171 110 . 36 270 185 . . . . 64 . . . . 136 . . . . 351 Initial 63 | . . . . . 13 31 . . . . 63 . . . . . . . . . . Average 61 | . 59 23 . 14 70 86 . . . . 63 . . . . 46 . . . . 93 Maximum Alert Level 1 | . . . . . 1 . . . . . . . . . . . . . . . 1 Low Security (%) 96 | 100 100 100 . 100 92 100 . . . . 100 . . . . 100 . . . . 91 Level 1 3 | . . . . . 7 . . . . . . . . . . . . . . . 8 Level 2 . | . . . . . . . . . . . . . . . . . . . . . . Level 3 . | . . . . . . . . . . . . . . . . . . . . . . Level 4 . | . . . . . . . . . . . . . . . . . . . . . . Level 5 . | . . . . . . . . . . . . . . . . . . . . . . High Security . | . . . . . . . . . . . . . . . . . . . . . . Max Security . | . . . . . . . . . . . . . . . . . . . . . . Squads Dispatched 13 | . 2 . . . 3 2 . . . . 1 . . . . 1 . . . . 4 Investigation 4 | . 1 . . . 1 . . . . . 1 . . . . 1 . . . . . Extermination 2 | . . . . . . 1 . . . . . . . . . . . . . . 1 Reinforcement 6 | . 1 . . . 2 . . . . . . . . . . . . . . . 3 Assault . | . . . . . . . . . . . . . . . . . . . . . . Garrison 1 | . . . . . . 1 . . . . . . . . . . . . . . . Intercept . | . . . . . . . . . . . . . . . . . . . . . . Construction Impeded . | . . . . . . . . . . . . . . . . . . . . . . Haulers Reinforced 1 | . . . . . . . . . . . . . . . . . . . . . 1 Active Scanning Responses . | . . . . . . . . . . . . . . . . . . . . . . Cargo Convoy Interrupts . | . . . . . . . . . . . . . . . . . . . . . . Stealth | -11 -10 -10 -10 -9 -8 -7 -7 -7 -7 -6 -6 -6 -6 -6 -5 -5 -5 -5 -5 -4 -4 --------- Run | Scr Mat Min Exi Min Mat Fac Low Low Zio Pro Fac Low Low Dat Pro Fac Upp Upp Zhi Pro Fac Distress Signals 8 | . 1 2 . . 2 . . . . . . . . . . . . . . . 3 Communications Jammed . | . . . . . . . . . . . . . . . . . . . . . . Distress Signals . | . . . . . . . . . . . . . . . . . . . . . . Times Spotted 142 | . 10 4 3 2 29 7 6 5 1 5 . 5 5 . 7 3 12 . . 9 29 Peak Tracking Total 9 | . 3 4 9 2 6 3 4 4 1 4 . 3 2 . 4 3 7 . . 5 8 Tactical Retreats 7 | . 1 1 . . 1 . . . . . . 1 1 . . . 2 . . . . Traps | -11 -10 -10 -10 -9 -8 -7 -7 -7 -7 -6 -6 -6 -6 -6 -5 -5 -5 -5 -5 -4 -4 ------- Run | Scr Mat Min Exi Min Mat Fac Low Low Zio Pro Fac Low Low Dat Pro Fac Upp Upp Zhi Pro Fac Traps Triggered 3 | . 1 . . . 1 . . . . . . . . . . . . . . . 1 Indirectly . | . . . . . . . . . . . . . . . . . . . . . . Trap Hack Attempts . | . . . . . . . . . . . . . . . . . . . . . . Triggered . | . . . . . . . . . . . . . . . . . . . . . . Disarmed . | . . . . . . . . . . . . . . . . . . . . . . Reprogrammed . | . . . . . . . . . . . . . . . . . . . . . . Reused . | . . . . . . . . . . . . . . . . . . . . . . Traps Extracted . | . . . . . . . . . . . . . . . . . . . . . . Installed . | . . . . . . . . . . . . . . . . . . . . . . Triggered 3 | . . . . . . . 1 2 . . . . . . . . . . . . . Machines | -11 -10 -10 -10 -9 -8 -7 -7 -7 -7 -6 -6 -6 -6 -6 -5 -5 -5 -5 -5 -4 -4 ---------- Run | Scr Mat Min Exi Min Mat Fac Low Low Zio Pro Fac Low Low Dat Pro Fac Upp Upp Zhi Pro Fac Machines Disabled 8 | . . . 1 . 1 . 1 . . . . . 1 . . . . . . . 4 Max in Single Turn 1 | . . . 1 . 1 . 1 . . . . . 1 . . . . . . . 1 Machines Sabotaged . | . . . . . . . . . . . . . . . . . . . . . . Garrisons Compromised . | . . . . . . . . . . . . . . . . . . . . . . Overloaded Fab Kills . | . . . . . . . . . . . . . . . . . . . . . . Hacking | -11 -10 -10 -10 -9 -8 -7 -7 -7 -7 -6 -6 -6 -6 -6 -5 -5 -5 -5 -5 -4 -4 --------- Run | Scr Mat Min Exi Min Mat Fac Low Low Zio Pro Fac Low Low Dat Pro Fac Upp Upp Zhi Pro Fac Machines Accessed 27 | . 2 . 2 . 3 2 1 1 . . 1 . . 3 . 5 . . 4 . 3 Terminals 11 | . 2 . . . 3 1 1 . . . . . . . . 4 . . . . . Fabricators 5 | . . . . . . 1 . . . . 1 . . . . 1 . . . . 2 Repair Stations 1 | . . . . . . . . . . . . . . . . . . . . . 1 Recycling Units . | . . . . . . . . . . . . . . . . . . . . . . Scanalyzers . | . . . . . . . . . . . . . . . . . . . . . . Garrison Access . | . . . . . . . . . . . . . . . . . . . . . . Total Hacks 108 | . 11 . 2 . 8 4 1 1 . . 4 . . 29 . 20 . . 17 . 11 Successful 78 | . 6 . 2 . 5 1 1 1 . . . . . 29 . 11 . . 17 . 5 Failed 30 | . 5 . . . 3 3 . . . . 4 . . . . 9 . . . . 6 Catastrophic 2 | . . . . . . . . . . . 1 . . . . 1 . . . . . Database Lockouts . | . . . . . . . . . . . . . . . . . . . . . . Manual 38 | . 8 . 1 . 4 4 . . . . 4 . 1 . . 10 . . . . 6 Terminals 38 | . 11 . . . 8 2 1 . . . . . . . . 16 . . . . . Fabricators 18 | . . . . . . 2 . . . . 4 . . . . 4 . . . . 8 Repair Stations 3 | . . . . . . . . . . . . . . . . . . . . . 3 Recycling Units . | . . . . . . . . . . . . . . . . . . . . . . Scanalyzers . | . . . . . . . . . . . . . . . . . . . . . . Garrison Access . | . . . . . . . . . . . . . . . . . . . . . . Terminal Hacks 66 | . 5 . 2 . 5 1 1 1 . . . . . 29 . 5 . . 17 . . Record 13 | . . . 1 . . . 1 . . . . . . 6 . . . . 5 . . Part Schematic 19 | . 1 . . . 1 . . . . . . . . 13 . . . . 4 . . Robot Schematic 7 | . . . . . . . . . . . . . . 7 . . . . . . . Robot Analysis 4 | . . . . . . . . . . . . . . . . . . . 4 . . Prototype ID Bank 7 | . . . . . . . . . . . . . . 3 . . . . 4 . . Open Door 1 | . . . . . . . . 1 . . . . . . . . . . . . . Level Access Points 1 | . . . . . . . . . . . . . . . . 1 . . . . . Branch Access Points 4 | . 1 . . . 1 1 . . . . . . . . . 1 . . . . . Fabricator Index 1 | . . . . . . . . . . . . . . . . 1 . . . . . Alert Level 2 | . . . . . 1 . . . . . . . . . . 1 . . . . . Unreport Threat 1 | . . . . . 1 . . . . . . . . . . . . . . . . Recall Investigation 1 | . 1 . . . . . . . . . . . . . . . . . . . . Hauler Manifests 1 | . 1 . . . . . . . . . . . . . . . . . . . . Zone Layout 3 | . 1 . . . 1 . . . . . . . . . . 1 . . . . . EX-Prototype ID Bank 1 | . . . 1 . . . . . . . . . . . . . . . . . . Fabricator Hacks 2 | . . . . . . . . . . . . . . . . 1 . . . . 1 Network Status 1 | . . . . . . . . . . . . . . . . 1 . . . . . Build 1 | . . . . . . . . . . . . . . . . . . . . . 1 Repair Station Hacks 2 | . . . . . . . . . . . . . . . . . . . . . 2 Scan Component 1 | . . . . . . . . . . . . . . . . . . . . . 1 Repair 1 | . . . . . . . . . . . . . . . . . . . . . 1 Recycling Unit Hacks . | . . . . . . . . . . . . . . . . . . . . . . Scanalyzer . | . . . . . . . . . . . . . . . . . . . . . . Garrison Access Hacks . | . . . . . . . . . . . . . . . . . . . . . . Unauthorized Hacks 8 | . 1 . . . . . . . . . . . . . . 5 . . . . 2 Terminals 3 | . 1 . . . . . . . . . . . . . . 2 . . . . . Botnet 1 | . . . . . . . . . . . . . . . . 1 . . . . . Operators 2 | . 1 . . . . . . . . . . . . . . 1 . . . . . Fabricators 5 | . . . . . . . . . . . . . . . . 3 . . . . 2 Liberate 1 | . . . . . . . . . . . . . . . . 1 . . . . . Fabnet 3 | . . . . . . . . . . . . . . . . 1 . . . . 2 Haulers 1 | . . . . . . . . . . . . . . . . 1 . . . . . Repair Stations . | . . . . . . . . . . . . . . . . . . . . . . Recycling Units . | . . . . . . . . . . . . . . . . . . . . . . Scanalyzers . | . . . . . . . . . . . . . . . . . . . . . . Garrison Access . | . . . . . . . . . . . . . . . . . . . . . . Data Cores Recovered . | . . . . . . . . . . . . . . . . . . . . . . Used . | . . . . . . . . . . . . . . . . . . . . . . Hacking Detections 15 | . 2 . . . 3 2 . . . . 1 . . . . 5 . . . . 2 Full Trace Events 2 | . . . . . . . . . . . 1 . . . . 1 . . . . . Feedback Events 1 | . . . . . . . . . . . . . . . . 1 . . . . . Corruption 1 | . . . . . . . . . . . . . . . . 1 . . . . . Feedback Blocked . | . . . . . . . . . . . . . . . . . . . . . . Robot Schematics Acquired 11 | . . . . . . . . . 4 . . . . 7 . . . . . . . Robots Built 1 | . . . . . . . . . . . . . . . . . . . . . 1 Authchips . | . . . . . . . . . . . . . . . . . . . . . . Time 93 | . . . . . . . . . . . . . . . . . . . . . 93 Total Robot Build Rating 7 | . . . . . . . . . . . . . . . . . . . . . 7 Part Schematics Acquired 33 | . 1 . . . 1 . . . 14 . . . . 13 . . . . 4 . . Parts Built . | . . . . . . . . . . . . . . . . . . . . . . Authchips . | . . . . . . . . . . . . . . . . . . . . . . Time . | . . . . . . . . . . . . . . . . . . . . . . Total Part Build Rating . | . . . . . . . . . . . . . . . . . . . . . . Parts Repaired 1 | . . . . . . . . . . . . . . . . . . . . . 1 Time 19 | . . . . . . . . . . . . . . . . . . . . . 19 Parts Recycled . | . . . . . . . . . . . . . . . . . . . . . . Recycled Matter . | . . . . . . . . . . . . . . . . . . . . . . Retrieved Matter . | . . . . . . . . . . . . . . . . . . . . . . Retrieved Components . | . . . . . . . . . . . . . . . . . . . . . . Parts Scanalyzed . | . . . . . . . . . . . . . . . . . . . . . . Part Schematics Acquired . | . . . . . . . . . . . . . . . . . . . . . . Parts Damaged . | . . . . . . . . . . . . . . . . . . . . . . Bothacking | -11 -10 -10 -10 -9 -8 -7 -7 -7 -7 -6 -6 -6 -6 -6 -5 -5 -5 -5 -5 -4 -4 ------------ Run | Scr Mat Min Exi Min Mat Fac Low Low Zio Pro Fac Low Low Dat Pro Fac Upp Upp Zhi Pro Fac Used RIF Installer . | . . . . . . . . . . . . . . . . . . . . . . Robots Hacked 1 | . . . . . . . . . . . . . . . . . . . . . 1 Non-combat . | . . . . . . . . . . . . . . . . . . . . . . Combat 1 | . . . . . . . . . . . . . . . . . . . . . 1 Robot Hacks Applied . | . . . . . . . . . . . . . . . . . . . . . . Relay Couplers Released . | . . . . . . . . . . . . . . . . . . . . . . Fabnet Peak Effective % 3 | . . . . . . . . . . . . . . . . . . . . 3 3 Autooverrided 1 | . . . . . . . . . . . . . . . . . . . . . 1 Robots Rewired . | . . . . . . . . . . . . . . . . . . . . . . Allies Hacked . | . . . . . . . . . . . . . . . . . . . . . . Hacks Repelled . | . . . . . . . . . . . . . . . . . . . . . . Allies | -11 -10 -10 -10 -9 -8 -7 -7 -7 -7 -6 -6 -6 -6 -6 -5 -5 -5 -5 -5 -4 -4 -------- Run | Scr Mat Min Exi Min Mat Fac Low Low Zio Pro Fac Low Low Dat Pro Fac Upp Upp Zhi Pro Fac Total Allies 6 | . . 3 . . . . . . . . . . . . 1 . . . . . 2 Largest Group 3 | . . 3 3 2 2 . . . . . . . . . 1 . . . . . 1 Highest-Rated Group 95 | . . 40 40 32 32 . . . . . . . . . 95 . . . . . 56 Highest-Rated Ally 95 | . . 16 16 16 16 . . . . . . . . . 95 . . . . . 56 Total Orders 1 | . . . 1 . . . . . . . . . . . . . . . . . . STAY 1 | . . . 1 . . . . . . . . . . . . . . . . . . Ally Attacks 39 | . . . 5 9 15 . . . . . . . . . 8 . . . . . 2 Total Damage 757 | . . . 60 119 176 . . . . . . . . . 330 . . . . . 72 Kills 5 | . . . 2 . 1 . . . . . . . . . 1 . . . . . 1 Allies Corrupted . | . . . . . . . . . . . . . . . . . . . . . . Allies Melted . | . . . . . . . . . . . . . . . . . . . . . . Intel | -11 -10 -10 -10 -9 -8 -7 -7 -7 -7 -6 -6 -6 -6 -6 -5 -5 -5 -5 -5 -4 -4 ------- Run | Scr Mat Min Exi Min Mat Fac Low Low Zio Pro Fac Low Low Dat Pro Fac Upp Upp Zhi Pro Fac Robot Analysis Total 4 | . . . . . . . . . . . . . . . . . . . 4 . . Derelict Logs Recovered 14 | . . . . 1 . . . 1 1 . . 3 1 . 2 . 1 1 . 3 . Drone Launches . | . . . . . . . . . . . . . . . . . . . . . . Drone Recoveries . | . . . . . . . . . . . . . . . . . . . . . . Exploration | -11 -10 -10 -10 -9 -8 -7 -7 -7 -7 -6 -6 -6 -6 -6 -5 -5 -5 -5 -5 -4 -4 ------------- Run | Scr Mat Min Exi Min Mat Fac Low Low Zio Pro Fac Low Low Dat Pro Fac Upp Upp Zhi Pro Fac Turns Passed 9752 | 103 520 503 535 279 830 507 370 691 1252 364 42 436 657 189 819 142 181 95 58 507 672 Spaces Moved 5770 | 54 276 265 325 160 385 277 180 411 752 201 23 253 254 78 225 200 470 202 147 321 311 Core 128 | 1 . . . . . . . . . . . . . . 28 . . . . 99 . Treads 3965 | 53 276 265 325 160 199 277 180 411 752 201 23 253 254 78 . . . . . . 258 Legs 508 | . . . . . 186 . . . . . . . . . 197 14 . . . 111 . Wheels . | . . . . . . . . . . . . . . . . . . . . . . Hover 162 | . . . . . . . . . . . . . . . . . . . . 109 53 Flight 1007 | . . . . . . . . . . . . . . . . 186 470 202 147 2 . Fastest Speed 28 | 50 160 160 160 160 120 155 156 160 160 160 160 160 162 245 190 32 28 34 34 34 56 Average Speed 145 | 157 160 160 160 160 139 155 196 160 160 160 160 161 229 245 323 57 30 34 34 124 142 Slowest Speed 1010 | 160 160 160 160 240 240 232 240 160 160 160 160 162 245 245 950 1010 108 34 34 200 160 Overloaded Moves . | . . . . . . . . . . . . . . . . . . . . . . Propulsion Burnouts . | . . . . . . . . . . . . . . . . . . . . . . Robots Hopped 3 | . . . . . . . . . . . . . . . . . 3 . . . . Cave-ins Triggered . | . . . . . . . . . . . . . . . . . . . . . . Exploration Rate (%) 42 | 4 44 56 69 27 34 10 35 58 81 46 1 49 44 69 40 9 74 45 60 58 12 Regions Visited 21 Branch Regions 15 Pre-discovered Areas 9 | . . . 1 1 . . . . 1 . . 1 . 1 . . . . 3 1 . Known Exits Taken 10 | . 1 . . . . 1 . 1 . . 1 . . . 1 1 1 1 1 1 . Unknown Exits Taken 11 | 1 . 1 1 1 1 . 1 . 1 1 . 1 1 1 . . . . . . . Scrap Searched 29 | . . 1 . 1 . . 2 3 3 . . 8 3 . 1 . 3 2 . 2 . Spaces Dug 3 | . . . . . . . . . . . 1 . . . . 2 . . . . . Terrain Destroyed 209 | . . 13 . . 41 48 59 17 . . 1 . . . 26 2 . . . . 2 Melee 3 | . . . . . . . . . . . 1 . . . . 2 . . . . . Projectile 2 | . . . . . . . . . . . . . . . . . . . . . 2 AOE 204 | . . 13 . . 41 48 59 17 . . . . . . 26 . . . . . . Terrain Rammed . | . . . . . . . . . . . . . . . . . . . . . . Walls Destroyed . | . . . . . . . . . . . . . . . . . . . . . . Machines Disabled . | . . . . . . . . . . . . . . . . . . . . . . Actions | -11 -10 -10 -10 -9 -8 -7 -7 -7 -7 -6 -6 -6 -6 -6 -5 -5 -5 -5 -5 -4 -4 --------- Run | Scr Mat Min Exi Min Mat Fac Low Low Zio Pro Fac Low Low Dat Pro Fac Upp Upp Zhi Pro Fac Total 6598 | 68 319 305 334 170 581 326 191 436 778 227 26 272 296 77 274 226 485 227 154 372 454 Wait 261 | 2 16 11 2 . 70 1 2 . . 13 . 12 13 . 4 . 4 26 . 15 70 Move 5746 | 54 275 264 324 159 385 276 179 410 751 200 22 252 253 77 224 199 464 201 146 320 311 Hop 2 | . . . . . . . . . . . . . . . . . 2 . . . . Pick Up 60 | 6 4 1 1 . 19 7 . 9 2 . . . 2 . 1 . . . 2 . 6 Fast Attach 68 | 6 1 . . 2 15 2 . 1 2 1 . . . . 7 4 3 . 3 7 14 Attach 22 | . . . . 2 2 1 . 2 . . 2 . 2 . 4 5 . . . . 2 Detach 7 | . . . . . 2 . . . 1 . . . . . . 2 . . . . 2 Swap 28 | . 1 2 1 . 6 5 2 4 . . 1 2 . . 2 1 . . . . 1 Drop 68 | . 1 1 2 . 21 9 1 3 2 . . . . . 1 13 3 . 3 2 6 Fire 287 | . 21 21 4 6 61 23 7 7 20 13 . 6 26 . 31 . . . . 2 39 Melee 39 | . . . . . . . . . . . 1 . . . . 2 9 . . 26 1 Ram . | . . . . . . . . . . . . . . . . . . . . . . Kick . | . . . . . . . . . . . . . . . . . . . . . . Crush 10 | . . 5 . 1 . 2 . . . . . . . . . . . . . . 2 Escape Stasis . | . . . . . . . . . . . . . . . . . . . . . . Rewire . | . . . . . . . . . . . . . . . . . . . . . . Trap . | . . . . . . . . . . . . . . . . . . . . . . Miscellaneous . | . . . . . . . . . . . . . . . . . . . . . . Route ------- -11/Scrapyard -10/Materials (discovered 3 exits: [*Mat] / *Min x2) -10/Mines (discovered 2 exits: [*Mat] / *Exi) -10/Exiles (discovered 2 exits: [*Min x2]) -9/Mines -8/Materials -7/Factory (discovered 3 exits: Sto / *Low x2) -7/Lower Caves -7/Lower Caves (discovered 2 exits: *Fac / *Zio) -7/Zion -6/Proximity Caves -6/Factory (discovered 2 exits: Fac / *Low) -6/Lower Caves -6/Lower Caves -6/Data Miner -5/Proximity Caves -5/Factory (discovered 6 exits: Fac x4 / *Upp x2) -5/Upper Caves -5/Upper Caves -5/Zhirov -4/Proximity Caves -4/Factory History --------- Turn | Location | Event 27 | -11/Scrapyard | Discovered new exit (range 15) 104 | -11/Scrapyard | Entered Materials 289 | -10/Materials | Discovered new exit (range 16) 309 | -10/Materials | Build established: Mutant 339 | -10/Materials | Identified exit to Mines 543 | -10/Materials | Discovered new exit (range 4) 624 | -10/Materials | Entered Mines 634 | -10/Mines | Discovered new exit (range 11) 764 | -10/Mines | Excavation squad dispatched 764 | -10/Mines | A large section of the Mines collapsed 979 | -10/Mines | Assisted by bots powering up and referring to "LRC-V3" 996 | -10/Mines | Received a Rocket Launcher from a helpful Derelict 1114 | -10/Mines | Deemed a non-threat by the Exiles lab entrance 1116 | -10/Mines | Discovered new exit (range 5) 1127 | -10/Mines | Entered Exiles 1127 | -10/Exiles | Accompanied by 3 allies 1148 | -10/Exiles | Discovered new exit (range 15) 1167 | -10/Exiles | Met 8R-AWN 1193 | -10/Exiles | Met EX-HEX 1292 | -10/Exiles | Met EX-DEC 1318 | -10/Exiles | Learned location of Zion (-7) 1351 | -10/Exiles | Met EX-BIN 1370 | -10/Exiles | Aligned with FarCom system 1372 | -10/Exiles | Given EX-Vault access code 1409 | -10/Exiles | Opened EX-Vault 1449 | -10/Exiles | Warned to stay clear of 0b10 Research branches 1550 | -10/Exiles | Discovered new exit (range 12) 1620 | -10/Exiles | Attacked by the Exiles 1662 | -10/Exiles | Entered Mines 1662 | -9/Mines | Accompanied by 2 allies 1723 | -9/Mines | Discovered new exit (range 4) 1746 | -9/Mines | Learned location of Storage (-7) 1855 | -9/Mines | Lost 4 parts (1p1n1u1w) 1941 | -9/Mines | Entered Materials 1941 | -8/Materials | Accompanied by 2 allies 1941 | -8/Materials | Evolved 4 slots: Propulsion x1, Utility x3 2732 | -8/Materials | Discovered new exit (range 9) 2771 | -8/Materials | Entered Factory 2771 | -7/Factory | Evolved 2 slots: Propulsion x1, Utility x1 3032 | -7/Factory | Identified exit to Storage 3032 | -7/Factory | Identified exit to Lower Caves 3213 | -7/Factory | Garrison activated, responded to threat 3278 | -7/Factory | Entered Lower Caves 3390 | -7/Lower Caves | Build established: Scavenger-Mutant 3490 | -7/Lower Caves | Discovered new exit (range 13) 3648 | -7/Lower Caves | Entered another Lower Caves area 3676 | -7/Lower Caves | Discovered new exit (range 7) 4157 | -7/Lower Caves | Identified exit to Zion 4217 | -7/Lower Caves | Encountered a Warlord checkpoint 4339 | -7/Lower Caves | Entered Zion 4383 | -7/Zion | Learned 8 Factory zone layouts 4780 | -7/Zion | Found CR-A16's Pointy Stick 5140 | -7/Zion | Learned location of Recycling (-7) 5565 | -7/Zion | Discovered new exit (range 14) 5591 | -7/Zion | Entered Proximity Caves 5931 | -6/Proximity Caves | Discovered new exit (range 16) 5955 | -6/Proximity Caves | Entered Factory 5955 | -6/Factory | Evolved 2 slots: Propulsion x1, Utility x1 5956 | -6/Factory | Identified exit to Factory 5956 | -6/Factory | Identified exit to Lower Caves 5997 | -6/Factory | Entered Lower Caves 6060 | -6/Lower Caves | Learned location of 2 exits from Factory 6075 | -6/Lower Caves | Encountered a Warlord checkpoint 6092 | -6/Lower Caves | Learned Factory security intel 6388 | -6/Lower Caves | Discovered new exit (range 14) 6433 | -6/Lower Caves | Entered another Lower Caves area 6926 | -6/Lower Caves | Encountered a Warlord checkpoint 7033 | -6/Lower Caves | Discovered new exit (range 9) 7056 | -6/Lower Caves | Acquired the password to a Derelict Tinkerer's latest research 7075 | -6/Lower Caves | Found Prototype Special Weapon 7090 | -6/Lower Caves | Entered Data Miner 7090 | -6/Data Miner | Discovered new exit (range 6) 7137 | -6/Data Miner | Met Data Miner 7186 | -6/Data Miner | Acquired the access code to Warlord's prototype stash 7186 | -6/Data Miner | Learned location of Section 7 (-2) 7220 | -6/Data Miner | Received God Mode back door access code from Data Miner 7279 | -6/Data Miner | Entered Proximity Caves 7360 | -5/Proximity Caves | Lost 10 parts (1p2n5u2w) 7497 | -5/Proximity Caves | Escorted by Enhanced Grunt 7554 | -5/Proximity Caves | Core integrity fell below 50% 7573 | -5/Proximity Caves | Core integrity fell below 20% 7593 | -5/Proximity Caves | Lost 3 parts (3w) 7603 | -5/Proximity Caves | Build established: Mutant 7758 | -5/Proximity Caves | Spotted B-75 Beast 7917 | -5/Proximity Caves | Build established: Scavenger-Mutant 7949 | -5/Proximity Caves | Learned Factory emergency access door positions 8098 | -5/Proximity Caves | Entered Factory 8098 | -5/Factory | Evolved 2 slots: Power x1, Propulsion x1 8099 | -5/Factory | Identified exit to Factory 8221 | -5/Factory | Identified exit to Upper Caves 8240 | -5/Factory | Entered Upper Caves 8260 | -5/Upper Caves | Encountered a Warlord checkpoint 8381 | -5/Upper Caves | Attracted the attention of an 0b10 checkpoint 8419 | -5/Upper Caves | Discovered new exit (range 6) 8420 | -5/Upper Caves | Identified exit to Upper Caves 8421 | -5/Upper Caves | Entered another Upper Caves area 8457 | -5/Upper Caves | Learned Factory security intel 8510 | -5/Upper Caves | Discovered new exit (range 17) 8516 | -5/Upper Caves | Identified exit to Zhirov 8516 | -5/Upper Caves | Entered Zhirov 8516 | -5/Zhirov | Discovered new exit (range 3) 8521 | -5/Zhirov | Identified exit to Proximity Caves 8527 | -5/Zhirov | Met Zhirov 8535 | -5/Zhirov | Found Alien Artifact 8535 | -5/Zhirov | Identified Integrated Reactor 8535 | -5/Zhirov | Installed Integrated Reactor, increased core energy generation (+10) 8551 | -5/Zhirov | Found Alien Artifact 8563 | -5/Zhirov | Learned location of Quarantine (-2) 8563 | -5/Zhirov | Learned location of Testing (-3) 8563 | -5/Zhirov | Learned location of Command (-1) 8565 | -5/Zhirov | Zhirov requested help retrieving the SGEMP Prototype 8574 | -5/Zhirov | Entered Proximity Caves 8628 | -4/Proximity Caves | Core integrity fell below 50% 8666 | -4/Proximity Caves | Lost 5 parts (2p3n) 8695 | -4/Proximity Caves | Build established: Mutant 8772 | -4/Proximity Caves | Learned Research stockpile data 8846 | -4/Proximity Caves | Core integrity fell below 20% 9081 | -4/Proximity Caves | Entered Factory 9081 | -4/Factory | Evolved 2 slots: Utility x2 9297 | -4/Factory | Fabricated O-32 Director (x1) 9394 | -4/Factory | Build established: Hacker-Mutant 9518 | -4/Factory | Repaired Imp. Utility Shielding 9753 | -4/Factory | Destroyed 7 combat bots 9753 | -4/Factory | Self-destructed Last Messages --------------- 09744_ HV Slug penetrates Wall. 09745_ Penetrated by Slug. 09745_ U-05 Engineer builds a Wall. 09745_ Imp. Heavy Treads destroyed. 09745_ K-01 Serf collects debris. 09747_ H-77 Assassin suffers critical hit (Destroy). 09747_ Destroyed Hpw. Shotgun. 09747_ H-77 Assassin knocked back. 09747_ Imp. Heavy Treads destroyed. 09747_ Penetrated by Slug. 09750_ K-01 Serf collects debris. 09750_ H-77 Assassin suffers critical hit (Destroy). 09750_ Destroyed Myomer Leg. 09750_ Penetrated by Slug. 09750_ Slug penetrates Wall. 09751_ K-01 Serf collects debris. 09752_ Ended siege mode. 09752_ Penetrated by Slug. 09753_ Critical hit (Burn: +37). 09753_ Imp. Heavy Treads destroyed. Map ----- +----------------------------------------------------+ | ?# """" ## #####+########+####?????????? | | ?# """" ## # #????????????? | | ?#= """" ### ## !!! """" #############? | | ?# #?# T# !!! """" # ! ?? | | ?# """" """" #?# # ! !!! """" # = ?? | | ?# """" """" #?# ## """" # ?? | | ?# """" """" #?# ## % # """ """?? | | ?# """" """" #? ?#+##########+## * """ """ ? | | ?# ## !%%[# """ """ # | | ?############### % %=[+ # | | ???????????????# % %%# """ """ ? | | ???????????????# ############ # """ """ ? | | ???????????????### ##???????????# # """ """ # | | ?????????????????? ?????????????# # # | | ?????????????????? ?????????????# + # | | ????????????????????????????????# ############## | | ????????????????????????????????# #????????????? | | ????????????????????????????????# #????????????? | | ?????????????????#??????????????# #??########??? | | ?????????????????# ##?????????? # #? #??? | | ??????????????#### ####???????? # #? #??? | | ????????######## |[=!%??????? # # #??? | | ????????# %*%!=%!#######+## # #??? | | ????????# = %*%%[ Y + #??? | | ????????# %%** =kh u%%= u # #??? | | ????????# %!%k%u*%![%[=%@w wu # #??? | | ????????# =%%=s =!%[%#######+######? #??? | | ????????# *##= %*!# * ?????#########??? | | ???????????????## ?# # [ #??????????????? | | ????????????????# ??## #??????????????? | | ????????????????# ????# " #??????????????? | | ????????????????# ????# = """ #??????????????? | | ????????????????# ?????# """ #??????????????? | | ????????????????# ?????# "" #??????????????? | | ????????????????# ??????# "" =#??????????????? | | ????????????????# ??????# #??????????????? | | ????????????????# ???????######?###??????????????? | | ????????????????# ???????????????????????????????? | | ????????????????#????????????????????????????????? | | ?????????????????????????????????????????????????? | | ?????????????????????????????????????????????????? | | ?????????????????????????????????????????????????? | | ?????????????????????????????????????????????????? | | ?????????????????????????????????????????????????? | | ?????????????????????????????????????????????????? | | ?????????????????????????????????????????????????? | | ?????????????????????????????????????????????????? | | ?????????????????????????????????????????????????? | | ?????????????????????????????????????????????????? | | ?????????????????????????????????????????????????? | +----------------------------------------------------+ Best States ------------- Heat Dissipation 70 Coolant Potential 80 Energy Generation 45 Energy Capacity 570 Matter Stores 300 Matter Capacity 300 Sight Range 18 Terrain Scan Density 10 Jamming Range 14 EM Shielding 4 Armor Coverage 450 Utility Shielding 66 Weapon Shielding 90 Evasion (%) 64 Targeting Accuracy 8 Recoil Reduction 6 Offensive Hacking 21 Defensive Hacking 24 Item Schematics ----------------- Med. Storage Unit | -10/Materials | Hacked Huge Storage Unit | -8/Materials | Hacked Recalibrator | -7/Zion | Archive Hyp. Gauss Rifle | -7/Zion | Archive Proton Missile Launcher | -7/Zion | Archive Mak. Laser | -7/Zion | Archive System Guard | -7/Zion | Archive Mak. Terrain Scan Processor | -7/Zion | Archive Mass Driver | -7/Zion | Archive Adv. Field Recycling Unit | -7/Zion | Archive Gravmag System | -7/Zion | Archive Flexi-carbon Leg | -7/Zion | Archive Med. Reactive Plating | -7/Zion | Archive Fission Core | -7/Zion | Archive Coolant Injector | -7/Zion | Archive Imp. Core Shielding | -7/Zion | Archive Combat Drone Bay | -6/Data Miner | Free Lgt. Regenerative Plating | -6/Data Miner | Free Cld. Gravmag System | -6/Data Miner | Free Imp. Thermal Defense Suite | -6/Data Miner | Free Hvy. Proton Cannon | -6/Data Miner | Free Imp. Heavy Treads | -6/Data Miner | Free Imp. Force Field | -6/Data Miner | Free Dispersion Rifle | -6/Data Miner | Free Adv. System Shield | -6/Data Miner | Free Imp. Linear Gravjet | -6/Data Miner | Free Field Propulsion Array | -6/Data Miner | Free Biometal Medium Treads | -6/Data Miner | Free Antigrav Array | -6/Data Miner | Free Assault Drone Bay | -5/Zhirov | Free Exp. Heat Sink | -5/Zhirov | Free Exp. Optical Array | -5/Zhirov | Free Imp. Arc Thrower | -5/Zhirov | Free Robot Schematics ------------------ W-25 Informer | -7/Zion | Archive C-17 Slicer | -7/Zion | Archive R-06 Scavenger | -7/Zion | Archive D-83 Annihilator | -7/Zion | Archive R-10 Processor | -6/Data Miner | Free A-15 Conveyor | -6/Data Miner | Free M-22 Extractor | -6/Data Miner | Free H-66 Slayer | -6/Data Miner | Free M-30 Cleanser | -6/Data Miner | Free B-60 Warrior | -6/Data Miner | Free L-61 Swordsman | -6/Data Miner | Free Fabricated ------------ O-32 Director | x1 | -4/Factory | Preloaded Alien Tech Used ----------------- Integrated Reactor Achievements -------------- None Challenges ------------ None Game ------ Seed ChainAbsorptionGreatsword Manual? 0 Play Time 01:10:13 Cumulative 441.0 hours Start 2022.01.22 @ 20:15:04 End 2022.01.23 @ 00:40:04 Sessions 9 Manual Loads 0 Difficulty Rogue Special Mode None Game No. 426 Rogue 211 Adventurer 112 Explorer 103 Win Type - Total 29 Types 21/0/5/2/0/0/0/1/0 Lore% 86 Gallery% 90 Achievement% 80 Wizard Run 0 Options --------- ASCII 1 Keyboard 0 Movement Vi Keybinds 1 Fullscreen 2 Font 18/SmallcapsGlow Map View 76x50 Tactical HUD 1 Map Filters NONE Filters NONE Steam 1 RUN: b351e5d0-9f9e-4971-89a8-857e8592035e